[Event "Late-Titled-Tuesday-Blitz-May-28-2024"]
[Site "Chess.com"]
[Date "2024.05.28"]
[Round "8"]
[White "MKlose11"]
[Black "GothamChess"]
[Result "0-1"]
[WhiteElo "2619"]
[BlackElo "2806"]
[TimeControl "180+1"]
[EndTime "15:30:29 PDT"]
[Termination "GothamChess won by resignation"]

1. e4 {[%clk 0:03:00.9]} 1... d5 {[%clk 0:02:59.2]} 2. exd5 {[%clk 0:03:00.6]}
2... Qxd5 {[%clk 0:03:00.1]} 3. Nc3 {[%clk 0:03:00.9]} 3... Qa5 {[%clk
0:03:00.7]} 4. d4 {[%clk 0:03:01.2]} 4... Nf6 {[%clk 0:03:01.1]} 5. Bd3 {[%clk
0:03:01]} 5... Bg4 {[%clk 0:02:57.8]} 6. f3 {[%clk 0:03:00.5]} 6... Bf5 {[%clk
0:02:56.2]} 7. Ne2 {[%clk 0:02:59.7]} 7... Bxd3 {[%clk 0:02:54.6]} 8. Qxd3
{[%clk 0:02:59.5]} 8... e6 {[%clk 0:02:55.2]} 9. O-O {[%clk 0:02:56.7]} 9... Nc6
{[%clk 0:02:55.1]} 10. Ne4 {[%clk 0:02:56.6]} 10... Be7 {[%clk 0:02:45.2]} 11.
c3 {[%clk 0:02:49.7]} 11... Rd8 {[%clk 0:02:36.1]} 12. Qc2 {[%clk 0:02:33]}
12... O-O {[%clk 0:02:22.6]} 13. Bf4 {[%clk 0:02:28.7]} 13... Nh5 {[%clk
0:01:57.1]} 14. b4 {[%clk 0:02:11.4]} 14... Qb6 {[%clk 0:01:51.4]} 15. Be3
{[%clk 0:02:11.2]} 15... Qb5 {[%clk 0:01:23.2]} 16. a4 {[%clk 0:02:04.7]} 16...
Qc4 {[%clk 0:01:22.2]} 17. Rac1 {[%clk 0:01:51.2]} 17... Nf6 {[%clk 0:01:14.1]}
18. Nd2 {[%clk 0:01:40.2]} 18... Qxe2 {[%clk 0:01:08.4]} 19. Rfe1 {[%clk
0:01:29]} 19... Nxb4 {[%clk 0:00:56.9]} 20. cxb4 {[%clk 0:01:08.5]} 20... Qa6
{[%clk 0:00:56.6]} 21. b5 {[%clk 0:01:08.4]} 21... Qd6 {[%clk 0:00:52]} 22. Qxc7
{[%clk 0:01:05.5]} 22... Nd5 {[%clk 0:00:46.7]} 23. Qxd6 {[%clk 0:01:03.5]}
23... Bxd6 {[%clk 0:00:46]} 24. Bf2 {[%clk 0:00:59.7]} 24... Bf4 {[%clk
0:00:42.1]} 25. Red1 {[%clk 0:00:47.7]} 25... Rc8 {[%clk 0:00:39.3]} 26. Rxc8
{[%clk 0:00:47.6]} 26... Rxc8 {[%clk 0:00:40.1]} 27. Ne4 {[%clk 0:00:47.3]}
27... b6 {[%clk 0:00:30.1]} 28. g3 {[%clk 0:00:47.1]} 28... Be3 {[%clk
0:00:29.1]} 29. Bxe3 {[%clk 0:00:41.1]} 29... Nxe3 {[%clk 0:00:30]} 30. Rd3
{[%clk 0:00:41.3]} 30... Nd5 {[%clk 0:00:29.2]} 31. a5 {[%clk 0:00:33.1]} 31...
h6 {[%clk 0:00:21.3]} 32. axb6 {[%clk 0:00:23.2]} 32... axb6 {[%clk 0:00:21.6]}
33. Ra3 {[%clk 0:00:23.4]} 33... Rc1+ {[%clk 0:00:18.7]} 34. Kg2 {[%clk
0:00:22.8]} 34... Rb1 {[%clk 0:00:16.3]} 35. Ra7 {[%clk 0:00:20.4]} 35... Rxb5
{[%clk 0:00:10.7]} 36. Nd6 {[%clk 0:00:20.6]} 36... Rb2+ {[%clk 0:00:10.7]} 37.
Kg1 {[%clk 0:00:20.9]} 37... f5 {[%clk 0:00:09.8]} 38. h4 {[%clk 0:00:18.7]}
38... h5 {[%clk 0:00:09]} 39. Nf7 {[%clk 0:00:17.1]} 39... f4 {[%clk 0:00:06.1]}
40. Ng5 {[%clk 0:00:15.9]} 40... Kf8 {[%clk 0:00:04.1]} 41. Nxe6+ {[%clk
0:00:16.2]} 41... Ke8 {[%clk 0:00:04.5]} 42. Nxg7+ {[%clk 0:00:15]} 42... Kd8
{[%clk 0:00:05]} 43. Ne6+ {[%clk 0:00:15.6]} 43... Kc8 {[%clk 0:00:05.3]} 44.
Nxf4 {[%clk 0:00:15.9]} 44... Nxf4 {[%clk 0:00:05.1]} 45. gxf4 {[%clk
0:00:16.8]} 45... Rb4 {[%clk 0:00:03.3]} 46. Rh7 {[%clk 0:00:14.3]} 46... Rxd4
{[%clk 0:00:03.7]} 47. Rxh5 {[%clk 0:00:14.6]} 47... Rxf4 {[%clk 0:00:03.3]} 48.
Kg2 {[%clk 0:00:15]} 48... Kc7 {[%clk 0:00:03.2]} 49. Kg3 {[%clk 0:00:15.5]}
49... Rf8 {[%clk 0:00:03.3]} 50. Rb5 {[%clk 0:00:14.5]} 50... Kc6 {[%clk
0:00:03.6]} 51. Rb1 {[%clk 0:00:14.6]} 51... b5 {[%clk 0:00:04.3]} 52. h5 {[%clk
0:00:14.7]} 52... Rg8+ {[%clk 0:00:03.2]} 53. Kh4 {[%clk 0:00:14.7]} 53... Rf8
{[%clk 0:00:03.8]} 54. h6 {[%clk 0:00:10.3]} 54... Rxf3 {[%clk 0:00:02.8]} 55.
Rc1+ {[%clk 0:00:09]} 55... Kd5 {[%clk 0:00:02.5]} 56. h7 {[%clk 0:00:09.9]}
56... Rf8 {[%clk 0:00:02.5]} 57. Rg1 {[%clk 0:00:07.4]} 57... Rh8 {[%clk
0:00:02.7]} 58. Rg7 {[%clk 0:00:07.5]} 58... b4 {[%clk 0:00:02.9]} 59. Rb7
{[%clk 0:00:07.3]} 59... Kc4 {[%clk 0:00:03.1]} 60. Kg4 {[%clk 0:00:07.1]} 60...
b3 {[%clk 0:00:03.4]} 61. Kf3 {[%clk 0:00:07.4]} 61... b2 {[%clk 0:00:03.5]} 62.
Ke2 {[%clk 0:00:07.2]} 62... Rxh7 {[%clk 0:00:03.3]} 63. Rb8 {[%clk 0:00:06.5]}
63... Rh2+ {[%clk 0:00:01.7]} 64. Kd1 {[%clk 0:00:06.6]} 64... Kc3 {[%clk
0:00:01.8]} 65. Rc8+ {[%clk 0:00:06.4]} 65... Kb3 {[%clk 0:00:02.4]} 66. Rb8+
{[%clk 0:00:06.8]} 66... Ka2 {[%clk 0:00:03]} 67. Ra8+ {[%clk 0:00:07.1]} 67...
Kb1 {[%clk 0:00:03.7]} 68. Rb8 {[%clk 0:00:05.9]} 68... Rh6 {[%clk 0:00:03.9]}
69. Rc8 {[%clk 0:00:04.8]} 69... Rd6+ {[%clk 0:00:04]} 70. Ke2 {[%clk
0:00:05.2]} 70... Rd5 {[%clk 0:00:04.1]} 71. Ke3 {[%clk 0:00:03.9]} 71... Ka1
{[%clk 0:00:03.6]} 72. Ra8+ {[%clk 0:00:04.1]} 72... Kb1 {[%clk 0:00:03.3]} 73.
Rb8 {[%clk 0:00:04.8]} 73... Kc2 {[%clk 0:00:03.8]} 74. Rc8+ {[%clk 0:00:05.2]}
74... Kb3 {[%clk 0:00:04.4]} 75. Rb8+ {[%clk 0:00:05.7]} 75... Kc3 {[%clk
0:00:04.9]} 76. Rb7 {[%clk 0:00:05.5]} 76... Rd1 {[%clk 0:00:04.5]} 77. Rc7+
{[%clk 0:00:04.3]} 77... Kb3 {[%clk 0:00:04.9]} 78. Rb7+ {[%clk 0:00:05.2]}
78... Ka3 {[%clk 0:00:04.7]} 79. Ra7+ {[%clk 0:00:05.7]} 79... Kb3 {[%clk
0:00:05.3]} 80. Rb7+ {[%clk 0:00:06.2]} 80... Ka2 {[%clk 0:00:04.6]} 81. Ra7+
{[%clk 0:00:06.3]} 81... Kb1 {[%clk 0:00:05.3]} 82. Rb7 {[%clk 0:00:06.3]} 82...
Rd6 {[%clk 0:00:05.5]} 83. Rb8 {[%clk 0:00:05.5]} 83... Ra6 {[%clk 0:00:05.8]}
84. Kd2 {[%clk 0:00:04.7]} 84... Ka2 {[%clk 0:00:05.1]} 85. Kc2 {[%clk
0:00:04.5]} 85... b1=Q+ {[%clk 0:00:05.1]} 86. Rxb1 {[%clk 0:00:04]} 86... Rc6+
{[%clk 0:00:05.8]} 87. Kd1 {[%clk 0:00:04.7]} 87... Kxb1 {[%clk 0:00:06.5]} 88.
Kd2 {[%clk 0:00:05.3]} 88... Kb2 {[%clk 0:00:07]} 89. Kd3 {[%clk 0:00:06.2]}
89... Kb3 {[%clk 0:00:07.6]} 90. Ke2 {[%clk 0:00:06.6]} 90... Rc3 {[%clk
0:00:07.3]} 91. Kd2 {[%clk 0:00:07.5]} 91... Kc4 {[%clk 0:00:08.2]} 92. Ke2
{[%clk 0:00:07.7]} 92... Kd4 {[%clk 0:00:09.1]} 93. Kd2 {[%clk 0:00:08.6]} 93...
Kc4 {[%clk 0:00:09.5]} 94. Ke2 {[%clk 0:00:09.3]} 94... Rd3 {[%clk 0:00:10.3]}
95. Ke1 {[%clk 0:00:09.6]} 95... Kd4 {[%clk 0:00:10.1]} 96. Ke2 {[%clk
0:00:10.5]} 96... Ke4 {[%clk 0:00:10.4]} 0-1

[Event "Late-Titled-Tuesday-Blitz-May-28-2024"]
[Site "Chess.com"]
[Date "2024.05.28"]
[Round "9"]
[White "jinxy2009"]
[Black "blueryder"]
[Result "0-1"]
[WhiteElo "2277"]
[BlackElo "2171"]
[TimeControl "180+1"]
[EndTime "15:39:34 PDT"]
[Termination "blueryder won by resignation"]

1. c4 {[%clk 0:02:55.2]} 1... a6 {[%clk 0:02:58]} 2. g3 {[%clk 0:02:52.3]} 2...
b5 {[%clk 0:02:54]} 3. Bg2 {[%clk 0:02:51.5]} 3... Nc6 {[%clk 0:02:53.6]} 4.
cxb5 {[%clk 0:02:50.7]} 4... axb5 {[%clk 0:02:53]} 5. d4 {[%clk 0:02:50.1]} 5...
d5 {[%clk 0:02:51]} 6. Nf3 {[%clk 0:02:49.1]} 6... g6 {[%clk 0:02:48.3]} 7. Rf1
{[%clk 0:02:47.6]} 7... Bg7 {[%clk 0:02:46.1]} 8. e3 {[%clk 0:02:39.2]} 8... Bf5
{[%clk 0:02:44]} 9. Ke2 {[%clk 0:02:38.4]} 9... Nf6 {[%clk 0:02:33.7]} 10. Re1
{[%clk 0:02:37.4]} 10... Nb4 {[%clk 0:02:31]} 11. Kf1 {[%clk 0:02:22.6]} 11...
Nc2 {[%clk 0:02:20.4]} 12. Ne5 {[%clk 0:02:20.5]} 12... Nxa1 {[%clk 0:02:15.2]}
13. Qe2 {[%clk 0:02:14.4]} 13... O-O {[%clk 0:02:04.4]} 14. Na3 {[%clk
0:02:12.9]} 14... b4 {[%clk 0:02:01.6]} 0-1

[Event "Late-Titled-Tuesday-Blitz-May-28-2024"]
[Site "Chess.com"]
[Date "2024.05.28"]
[Round "9"]
[White "colegiodemadrid"]
[Black "Bryanl106"]
[Result "0-1"]
[WhiteElo "2522"]
[BlackElo "2698"]
[TimeControl "180+1"]
[EndTime "15:39:59 PDT"]
[Termination "Bryanl106 won by resignation"]

1. d4 {[%clk 0:03:00.9]} 1... Nf6 {[%clk 0:03:00]} 2. c4 {[%clk 0:03:00.9]} 2...
c5 {[%clk 0:03:00.5]} 3. Nf3 {[%clk 0:03:00]} 3... g6 {[%clk 0:02:56.8]} 4. g3
{[%clk 0:02:59.5]} 4... Bg7 {[%clk 0:02:56.2]} 5. Bg2 {[%clk 0:03:00]} 5... O-O
{[%clk 0:02:53.3]} 6. O-O {[%clk 0:03:00.5]} 6... cxd4 {[%clk 0:02:52.6]} 7.
Nxd4 {[%clk 0:03:01.4]} 7... Qc7 {[%clk 0:02:51]} 8. b3 {[%clk 0:02:59.5]} 8...
Nc6 {[%clk 0:02:47.6]} 9. Bb2 {[%clk 0:02:59.3]} 9... a6 {[%clk 0:02:44.2]} 10.
Nc3 {[%clk 0:02:57.2]} 10... d6 {[%clk 0:02:43]} 11. Rc1 {[%clk 0:02:54.9]}
11... Qa5 {[%clk 0:02:23.6]} 12. a3 {[%clk 0:02:54.5]} 12... Bd7 {[%clk
0:02:22.9]} 13. b4 {[%clk 0:02:53.8]} 13... Qd8 {[%clk 0:02:18.9]} 14. Nd5
{[%clk 0:02:52.7]} 14... Nxd5 {[%clk 0:02:08.3]} 15. cxd5 {[%clk 0:02:52.2]}
15... Ne5 {[%clk 0:02:08.3]} 16. h3 {[%clk 0:02:48.7]} 16... g5 {[%clk
0:02:07.9]} 17. Qd2 {[%clk 0:02:44.7]} 17... h6 {[%clk 0:02:07.9]} 18. e4 {[%clk
0:02:28.1]} 18... Rc8 {[%clk 0:02:04.4]} 19. f4 {[%clk 0:02:24.5]} 19... Nc4
{[%clk 0:02:02.9]} 20. Qf2 {[%clk 0:02:17.7]} 20... Nxb2 {[%clk 0:02:01.6]} 21.
Qxb2 {[%clk 0:02:18.6]} 21... Qb6 {[%clk 0:02:00.7]} 22. Rcd1 {[%clk 0:02:07]}
22... Rc4 {[%clk 0:01:58.9]} 0-1

[Event "Late-Titled-Tuesday-Blitz-May-28-2024"]
[Site "Chess.com"]
[Date "2024.05.28"]
[Round "9"]
[White "Kombinator01"]
[Black "bazar-wokzal"]
[Result "0-1"]
[WhiteElo "2474"]
[BlackElo "2590"]
[TimeControl "180+1"]
[EndTime "15:40:09 PDT"]
[Termination "bazar-wokzal won by resignation"]

1. e4 {[%clk 0:03:00.9]} 1... Nc6 {[%clk 0:02:59.5]} 2. Nf3 {[%clk 0:03:00.4]}
2... d5 {[%clk 0:02:59.6]} 3. exd5 {[%clk 0:02:58.3]} 3... Qxd5 {[%clk
0:03:00.5]} 4. Nc3 {[%clk 0:02:58.5]} 4... Qa5 {[%clk 0:03:00.7]} 5. Bb5 {[%clk
0:02:56.6]} 5... Bd7 {[%clk 0:03:00.9]} 6. O-O {[%clk 0:02:55.7]} 6... a6 {[%clk
0:03:01.4]} 7. Bxc6 {[%clk 0:02:55]} 7... Bxc6 {[%clk 0:03:02.3]} 8. Nd4 {[%clk
0:02:54.3]} 8... e6 {[%clk 0:02:45.2]} 9. Nxc6 {[%clk 0:02:54]} 9... bxc6 {[%clk
0:02:45.6]} 10. Qf3 {[%clk 0:02:53.3]} 10... Ne7 {[%clk 0:02:45.4]} 11. a3
{[%clk 0:02:45]} 11... Qf5 {[%clk 0:02:44.9]} 12. Qg3 {[%clk 0:02:42.6]} 12...
Rc8 {[%clk 0:02:37.6]} 13. d3 {[%clk 0:02:40.9]} 13... Nd5 {[%clk 0:02:35.6]}
14. Nxd5 {[%clk 0:02:39.1]} 14... cxd5 {[%clk 0:02:35.4]} 15. b4 {[%clk
0:02:39.7]} 15... h5 {[%clk 0:02:31.8]} 16. h4 {[%clk 0:02:36.2]} 16... Bd6
{[%clk 0:02:20.8]} 17. Qxg7 {[%clk 0:02:35.7]} 17... Be5 {[%clk 0:02:20.9]} 18.
Qxh8+ {[%clk 0:02:12.9]} 18... Bxh8 {[%clk 0:02:19.8]} 19. Rb1 {[%clk
0:02:13.4]} 19... Kd7 {[%clk 0:02:18.5]} 20. a4 {[%clk 0:02:12.6]} 20... Rg8
{[%clk 0:02:17.8]} 21. g3 {[%clk 0:02:10.8]} 21... Qf3 {[%clk 0:02:11.9]} 22. b5
{[%clk 0:02:08.5]} 22... Rxg3+ {[%clk 0:02:00.2]} 23. fxg3 {[%clk 0:02:09.4]}
23... Qxg3+ {[%clk 0:02:00.4]} 24. Kh1 {[%clk 0:02:10.3]} 24... Qh3+ {[%clk
0:02:00.9]} 25. Kg1 {[%clk 0:02:11.2]} 25... Bd4+ {[%clk 0:02:00.9]} 26. Rf2
{[%clk 0:02:12.1]} 26... Qg3+ {[%clk 0:02:00.8]} 0-1

[Event "Late-Titled-Tuesday-Blitz-May-28-2024"]
[Site "Chess.com"]
[Date "2024.05.28"]
[Round "9"]
[White "JohnWhite1952"]
[Black "Quaide7"]
[Result "1-0"]
[WhiteElo "2031"]
[BlackElo "2124"]
[TimeControl "180+1"]
[EndTime "15:40:21 PDT"]
[Termination "JohnWhite1952 won by resignation"]

1. e4 {[%clk 0:02:58.8]} 1... e6 {[%clk 0:02:54.8]} 2. d3 {[%clk 0:02:57.4]}
2... d5 {[%clk 0:02:53.9]} 3. Nd2 {[%clk 0:02:56.9]} 3... c5 {[%clk 0:02:51.7]}
4. Ngf3 {[%clk 0:02:56]} 4... Nc6 {[%clk 0:02:52]} 5. g3 {[%clk 0:02:55.4]} 5...
Nf6 {[%clk 0:02:50.8]} 6. Bg2 {[%clk 0:02:54.9]} 6... Be7 {[%clk 0:02:50.4]} 7.
O-O {[%clk 0:02:53.8]} 7... Rb8 {[%clk 0:02:50]} 8. Re1 {[%clk 0:02:52.9]} 8...
b5 {[%clk 0:02:49.9]} 9. e5 {[%clk 0:02:48.4]} 9... Nd7 {[%clk 0:02:49.7]} 10.
Nf1 {[%clk 0:02:46.2]} 10... Qc7 {[%clk 0:02:49.8]} 11. Bf4 {[%clk 0:02:40]}
11... h6 {[%clk 0:02:47.2]} 12. h4 {[%clk 0:02:37.1]} 12... g5 {[%clk
0:02:43.4]} 13. hxg5 {[%clk 0:02:32.4]} 13... hxg5 {[%clk 0:02:44.3]} 14. Bxg5
{[%clk 0:02:25.8]} 14... Ndxe5 {[%clk 0:02:42.3]} 15. Bxe7 {[%clk 0:02:18]}
15... Nxf3+ {[%clk 0:02:33.3]} 16. Qxf3 {[%clk 0:02:13]} 16... Qxe7 {[%clk
0:02:33.2]} 17. c4 {[%clk 0:02:06.3]} 17... Nd4 {[%clk 0:02:30.5]} 18. Qf4
{[%clk 0:01:45.2]} 18... bxc4 {[%clk 0:02:15]} 19. Qxb8 {[%clk 0:01:35.6]} 1-0

[Event "Late-Titled-Tuesday-Blitz-May-28-2024"]
[Site "Chess.com"]
[Date "2024.05.28"]
[Round "9"]
[White "N_Mullodzhanov"]
[Black "lamomiablanca"]
[Result "0-1"]
[WhiteElo "2490"]
[BlackElo "2626"]
[TimeControl "180+1"]
[EndTime "15:41:32 PDT"]
[Termination "lamomiablanca won by checkmate"]

1. e4 {[%clk 0:03:00.9]} 1... e5 {[%clk 0:02:59.1]} 2. Nf3 {[%clk 0:03:00.7]}
2... Nc6 {[%clk 0:02:59.1]} 3. d4 {[%clk 0:03:00.5]} 3... exd4 {[%clk
0:02:58.7]} 4. Nxd4 {[%clk 0:03:01.4]} 4... Bc5 {[%clk 0:02:55.8]} 5. Nb3 {[%clk
0:03:01.4]} 5... Bb6 {[%clk 0:02:55.5]} 6. Nc3 {[%clk 0:03:01.3]} 6... Nf6
{[%clk 0:02:51.8]} 7. Qe2 {[%clk 0:03:00.8]} 7... O-O {[%clk 0:02:50.8]} 8. Bg5
{[%clk 0:02:57.6]} 8... h6 {[%clk 0:02:46.9]} 9. Bh4 {[%clk 0:02:55.8]} 9... a5
{[%clk 0:02:47]} 10. Nd5 {[%clk 0:02:52.7]} 10... g5 {[%clk 0:02:46.3]} 11. Nxb6
{[%clk 0:02:51]} 11... cxb6 {[%clk 0:02:43.6]} 12. Bg3 {[%clk 0:02:51.1]} 12...
Nxe4 {[%clk 0:02:43.6]} 13. O-O-O {[%clk 0:02:42]} 13... Re8 {[%clk 0:02:41.7]}
14. Qf3 {[%clk 0:02:31.4]} 14... a4 {[%clk 0:02:38.3]} 15. Nd4 {[%clk
0:02:24.9]} 15... a3 {[%clk 0:02:36.9]} 16. b3 {[%clk 0:02:16.3]} 16... d5
{[%clk 0:02:36.3]} 17. h4 {[%clk 0:01:58.7]} 17... Nxg3 {[%clk 0:02:28]} 18.
Qxg3 {[%clk 0:01:53.5]} 18... Qf6 {[%clk 0:02:25.8]} 19. h5 {[%clk 0:01:48.6]}
19... Nxd4 {[%clk 0:02:24.5]} 20. Qd3 {[%clk 0:01:25.4]} 20... Nc6 {[%clk
0:02:11.1]} 21. Be2 {[%clk 0:01:24.8]} 21... Bf5 {[%clk 0:02:09.1]} 22. Qf3
{[%clk 0:01:15.2]} 22... Qb2+ {[%clk 0:02:07.1]} 23. Kd2 {[%clk 0:01:15.5]}
23... Nd4 {[%clk 0:01:59.3]} 24. Qg3 {[%clk 0:00:46.3]} 24... Qxc2+ {[%clk
0:01:56.6]} 25. Ke1 {[%clk 0:00:46.3]} 25... Qxe2# {[%clk 0:01:56.4]} 0-1

[Event "Late-Titled-Tuesday-Blitz-May-28-2024"]
[Site "Chess.com"]
[Date "2024.05.28"]
[Round "9"]
[White "merinasian"]
[Black "Smoking_Crow"]
[Result "1-0"]
[WhiteElo "2473"]
[BlackElo "2565"]
[TimeControl "180+1"]
[EndTime "15:41:33 PDT"]
[Termination "merinasian won by checkmate"]

1. d4 {[%clk 0:02:54.2]} 1... Nf6 {[%clk 0:02:59.5]} 2. Nf3 {[%clk 0:02:52.4]}
2... d5 {[%clk 0:02:59.4]} 3. c4 {[%clk 0:02:51.4]} 3... e6 {[%clk 0:02:59.9]}
4. e3 {[%clk 0:02:51.6]} 4... b6 {[%clk 0:02:59]} 5. Nbd2 {[%clk 0:02:47.7]}
5... Be7 {[%clk 0:02:58.6]} 6. Bd3 {[%clk 0:02:48.2]} 6... O-O {[%clk
0:02:58.1]} 7. e4 {[%clk 0:02:43.9]} 7... dxe4 {[%clk 0:02:54.9]} 8. Nxe4 {[%clk
0:02:44.8]} 8... Bb7 {[%clk 0:02:53.2]} 9. Qe2 {[%clk 0:02:42.9]} 9... Nbd7
{[%clk 0:02:51.5]} 10. O-O {[%clk 0:02:41.5]} 10... Nxe4 {[%clk 0:02:47.6]} 11.
Bxe4 {[%clk 0:02:41.3]} 11... Bxe4 {[%clk 0:02:48.5]} 12. Qxe4 {[%clk
0:02:41.3]} 12... c5 {[%clk 0:02:48.4]} 13. Rd1 {[%clk 0:02:33]} 13... cxd4
{[%clk 0:02:37.8]} 14. Nxd4 {[%clk 0:02:32.1]} 14... Nf6 {[%clk 0:02:33]} 15.
Qf3 {[%clk 0:02:28.9]} 15... Qc7 {[%clk 0:02:28.1]} 16. b3 {[%clk 0:02:15.1]}
16... Rad8 {[%clk 0:02:25.1]} 17. Bb2 {[%clk 0:02:03.2]} 17... a6 {[%clk
0:02:22.4]} 18. Nc6 {[%clk 0:01:59.8]} 18... Rxd1+ {[%clk 0:02:19.6]} 19. Rxd1
{[%clk 0:02:00.7]} 19... Bd6 {[%clk 0:02:18.8]} 20. Bxf6 {[%clk 0:01:26.7]}
20... gxf6 {[%clk 0:02:17.4]} 21. Qxf6 {[%clk 0:00:56.4]} 21... Qxc6 {[%clk
0:02:17.2]} 22. Rd4 {[%clk 0:00:55.6]} 22... h5 {[%clk 0:02:12.2]} 23. Qg5+
{[%clk 0:00:54.4]} 23... Kh7 {[%clk 0:02:12.2]} 24. Rh4 {[%clk 0:00:54.4]} 24...
Bxh2+ {[%clk 0:02:08.9]} 25. Rxh2 {[%clk 0:00:38.1]} 25... f6 {[%clk 0:02:07.7]}
26. Rxh5# {[%clk 0:00:37.8]} 1-0

[Event "Late-Titled-Tuesday-Blitz-May-28-2024"]
[Site "Chess.com"]
[Date "2024.05.28"]
[Round "9"]
[White "egnfanclub"]
[Black "WilsonPalencia21"]
[Result "0-1"]
[WhiteElo "2325"]
[BlackElo "2573"]
[TimeControl "180+1"]
[EndTime "15:41:38 PDT"]
[Termination "WilsonPalencia21 won by resignation"]

1. e4 {[%clk 0:03:00.9]} 1... c5 {[%clk 0:03:00.1]} 2. Nc3 {[%clk 0:03:00.5]}
2... Nc6 {[%clk 0:03:00.2]} 3. f4 {[%clk 0:03:01.4]} 3... g6 {[%clk 0:03:00]} 4.
Nf3 {[%clk 0:03:02.3]} 4... Bg7 {[%clk 0:03:00.6]} 5. Bc4 {[%clk 0:03:02]} 5...
e6 {[%clk 0:03:00.4]} 6. f5 {[%clk 0:03:02.4]} 6... Nge7 {[%clk 0:03:00.4]} 7.
fxe6 {[%clk 0:03:02.8]} 7... dxe6 {[%clk 0:03:01.3]} 8. d3 {[%clk 0:03:03.2]}
8... O-O {[%clk 0:03:02]} 9. O-O {[%clk 0:03:03.6]} 9... Na5 {[%clk 0:03:02.3]}
10. Qe1 {[%clk 0:03:00.9]} 10... b6 {[%clk 0:03:01]} 11. Bg5 {[%clk 0:02:52.4]}
11... f6 {[%clk 0:03:00.9]} 12. Bf4 {[%clk 0:02:44.8]} 12... Nxc4 {[%clk
0:03:00.7]} 13. dxc4 {[%clk 0:02:43.8]} 13... e5 {[%clk 0:02:58]} 14. Be3 {[%clk
0:02:36.2]} 14... Be6 {[%clk 0:02:56.7]} 15. Rd1 {[%clk 0:02:35.1]} 15... Qc7
{[%clk 0:02:53.7]} 16. Nd5 {[%clk 0:02:35.4]} 16... Bxd5 {[%clk 0:02:53.8]} 17.
cxd5 {[%clk 0:02:33.7]} 17... Nc8 {[%clk 0:02:54.1]} 18. b4 {[%clk 0:02:02.1]}
18... cxb4 {[%clk 0:02:52.1]} 19. Qxb4 {[%clk 0:02:03]} 19... Nd6 {[%clk
0:02:52.1]} 20. Nd2 {[%clk 0:01:57.2]} 20... Rfd8 {[%clk 0:02:47]} 21. c4 {[%clk
0:01:56.9]} 21... Rac8 {[%clk 0:02:34]} 22. Rc1 {[%clk 0:01:51.7]} 22... f5
{[%clk 0:02:28.7]} 23. c5 {[%clk 0:01:39.9]} 23... bxc5 {[%clk 0:02:27.5]} 24.
Rxc5 {[%clk 0:01:27.1]} 24... Qd7 {[%clk 0:02:19]} 25. Rfc1 {[%clk 0:01:22.5]}
25... Bf8 {[%clk 0:02:09.2]} 26. Qa5 {[%clk 0:01:07.8]} 26... Nb7 {[%clk
0:02:00.1]} 0-1

[Event "Late-Titled-Tuesday-Blitz-May-28-2024"]
[Site "Chess.com"]
[Date "2024.05.28"]
[Round "9"]
[White "KorolDimitriy75"]
[Black "Zorbos"]
[Result "1-0"]
[WhiteElo "2467"]
[BlackElo "2731"]
[TimeControl "180+1"]
[EndTime "15:41:51 PDT"]
[Termination "KorolDimitriy75 won by resignation"]

1. d4 {[%clk 0:03:00.9]} 1... Nf6 {[%clk 0:02:57.4]} 2. c4 {[%clk 0:03:01]} 2...
g6 {[%clk 0:02:57.3]} 3. Nc3 {[%clk 0:03:01.5]} 3... Bg7 {[%clk 0:02:57.4]} 4.
e4 {[%clk 0:03:01.8]} 4... d6 {[%clk 0:02:57.9]} 5. Nf3 {[%clk 0:03:02.7]} 5...
O-O {[%clk 0:02:58.1]} 6. Be2 {[%clk 0:03:03.6]} 6... e5 {[%clk 0:02:58.5]} 7.
dxe5 {[%clk 0:03:04.5]} 7... dxe5 {[%clk 0:02:58.6]} 8. Qxd8 {[%clk 0:03:05.4]}
8... Rxd8 {[%clk 0:02:59.1]} 9. Bg5 {[%clk 0:03:06]} 9... c6 {[%clk 0:02:50]}
10. Nxe5 {[%clk 0:03:06.1]} 10... Re8 {[%clk 0:02:50.5]} 11. O-O-O {[%clk
0:03:05.9]} 11... h6 {[%clk 0:02:45.7]} 12. Bh4 {[%clk 0:03:05.3]} 12... Nxe4
{[%clk 0:02:19.1]} 13. Nxe4 {[%clk 0:03:05]} 13... Bxe5 {[%clk 0:02:17]} 14.
Rhe1 {[%clk 0:01:26.8]} 14... g5 {[%clk 0:02:11.5]} 15. Bg3 {[%clk 0:01:22.7]}
15... Bxg3 {[%clk 0:02:01.1]} 16. Nf6+ {[%clk 0:00:58.2]} 16... Kf8 {[%clk
0:02:00.9]} 17. hxg3 {[%clk 0:00:58.1]} 17... Be6 {[%clk 0:01:51.6]} 18. Nxe8
{[%clk 0:00:57.3]} 18... Kxe8 {[%clk 0:01:52.5]} 19. Bg4 {[%clk 0:00:56.4]}
19... Ke7 {[%clk 0:01:53.1]} 20. Bxe6 {[%clk 0:00:54.9]} 20... fxe6 {[%clk
0:01:53.2]} 21. b3 {[%clk 0:00:53.3]} 21... Nd7 {[%clk 0:01:53.6]} 22. Kc2
{[%clk 0:00:52.6]} 22... a5 {[%clk 0:01:53]} 23. Re3 {[%clk 0:00:51.3]} 23...
Nc5 {[%clk 0:01:49.1]} 24. Kc3 {[%clk 0:00:46.6]} 24... Rf8 {[%clk 0:01:46.7]}
25. f3 {[%clk 0:00:46.4]} 25... h5 {[%clk 0:01:45]} 26. Rh1 {[%clk 0:00:43.5]}
26... Rh8 {[%clk 0:01:45.3]} 27. Re5 {[%clk 0:00:40.8]} 1-0

[Event "Late-Titled-Tuesday-Blitz-May-28-2024"]
[Site "Chess.com"]
[Date "2024.05.28"]
[Round "9"]
[White "eljanov"]
[Black "attack2mateU"]
[Result "0-1"]
[WhiteElo "2878"]
[BlackElo "2722"]
[TimeControl "180+1"]
[EndTime "15:42:13 PDT"]
[Termination "attack2mateU won by resignation"]

1. d4 {[%clk 0:03:00.9]} 1... Nf6 {[%clk 0:02:58.5]} 2. Bf4 {[%clk 0:03:01.3]}
2... d5 {[%clk 0:02:58.3]} 3. e3 {[%clk 0:03:01.1]} 3... c5 {[%clk 0:02:59.2]}
4. Nf3 {[%clk 0:03:00.1]} 4... Nc6 {[%clk 0:02:59.5]} 5. Nbd2 {[%clk 0:03:00.1]}
5... Qb6 {[%clk 0:02:58.4]} 6. dxc5 {[%clk 0:03:00]} 6... Qxb2 {[%clk
0:02:58.8]} 7. Rb1 {[%clk 0:03:00]} 7... Qc3 {[%clk 0:02:59.4]} 8. Bb5 {[%clk
0:02:53.7]} 8... e6 {[%clk 0:02:56.5]} 9. O-O {[%clk 0:02:51.9]} 9... Be7 {[%clk
0:02:53.9]} 10. e4 {[%clk 0:02:48.8]} 10... O-O {[%clk 0:02:54.4]} 11. e5 {[%clk
0:02:47.1]} 11... Nd7 {[%clk 0:02:55]} 12. Nb3 {[%clk 0:02:41.7]} 12... Qb4
{[%clk 0:02:52.3]} 13. Bd2 {[%clk 0:02:27.8]} 13... Qxb5 {[%clk 0:02:51.2]} 14.
Nbd4 {[%clk 0:02:05.6]} 14... Qxc5 {[%clk 0:02:41.8]} 15. Nxc6 {[%clk
0:02:05.7]} 15... Qxc6 {[%clk 0:02:40.9]} 16. Re1 {[%clk 0:01:57.8]} 16... a6
{[%clk 0:02:09.1]} 17. Rb3 {[%clk 0:01:49.4]} 17... Nc5 {[%clk 0:02:02.7]} 18.
Nd4 {[%clk 0:01:49.5]} 18... Qa4 {[%clk 0:01:54.8]} 19. Rg3 {[%clk 0:01:39.7]}
19... Ne4 {[%clk 0:01:09.5]} 20. Rg4 {[%clk 0:01:04.1]} 20... f5 {[%clk
0:00:58.5]} 21. exf6 {[%clk 0:00:58.7]} 21... Bxf6 {[%clk 0:00:58.6]} 0-1